bitfinex-derivatives/quotes_BTCF0:USTF0_20241117
["timestamp","ask_amount","ask_price","bid_price","bid_amount"]
[1731801601357,0.3608,90640.0,90627.0,0.02660368]
[1731801601555,0.3608,90640.0,90625.0,0.14085213]
[1731801601770,0.3608,90640.0,90626.0,0.02621715]
[1731801601963,0.3608,90640.0,90625.0,0.14085213]
[1731801601964,0.3608,90640.0,90627.0,0.02621715]
[1731801602268,0.3608,90640.0,90628.0,0.02621715]
[1731801602451,0.3608,90640.0,90626.0,0.11033569]
[1731801602656,0.3608,90640.0,90625.0,0.0305]
[1731801603869,0.3608,90640.0,90626.0,0.0262239]
[1731801604061,0.3608,90640.0,90626.0,0.11033569]
[1731801605072,0.3608,90631.0,90626.0,0.11033569]
[1731801605758,0.0315,90630.0,90626.0,0.11033569]
[1731801606463,0.3608,90639.0,90627.0,9.187e-05]
[1731801607169,0.3608,90639.0,90628.0,0.11033508]
[1731801607658,0.0315,90641.0,90628.0,0.11033508]
[1731801608473,0.00013132,90643.0,90632.0,0.3608]
[1731801609058,0.00013132,90643.0,90633.0,0.1103296]
[1731801609563,0.10625037,90641.0,90633.0,0.1103296]
[1731801609766,0.3608,90639.0,90633.0,0.1103296]
[1731801609966,0.0314,90638.0,90633.0,0.1103296]
[1731801610173,0.10625037,90634.0,90627.0,9.187e-05]
[1731801610581,0.10625037,90634.0,90628.0,0.11033021]
[1731801610874,0.00013132,90643.0,90628.0,0.11033021]
[1731801610875,0.3608,90640.0,90628.0,0.11033021]
[1731801611456,0.00013132,90643.0,90628.0,0.11033021]
[1731801613067,0.00013132,90643.0,90628.0,0.03333021]
[1731801613771,0.3608,90636.0,90628.0,0.03333021]
[1731801613971,0.10625037,90630.0,90628.0,0.03333021]
[1731801614569,0.297282,90634.0,90628.0,0.03333021]
[1731801614765,0.0051,90642.0,90633.0,0.3608]
[1731801614961,0.00013132,90643.0,90641.0,0.3608]
[1731801615460,0.00013132,90643.0,90642.0,0.11033752]
[1731801616860,0.00013132,90643.0,90642.0,0.19497752]
[1731801617264,0.00013132,90643.0,90642.0,0.08464]
[1731801617468,0.00013132,90643.0,90642.0,0.19496352]
[1731801617970,0.00013132,90643.0,90642.0,0.55576352]
[1731801619065,0.00013132,90643.0,90642.0,0.61074619]
[1731801619961,0.00013132,90643.0,90642.0,1.34795656]
[1731801620165,0.0051,90655.0,90642.0,1.34795656]
[1731801620366,0.0051,90662.0,90654.0,0.3608]
[1731801620577,0.3608,90666.0,90655.0,0.08464]
[1731801620578,0.10625037,90663.0,90655.0,0.08464]
[1731801620890,0.3608,90666.0,90642.0,0.41634267]
[1731801620891,0.10625037,90656.0,90642.0,0.41634267]
[1731801621078,0.10625037,90656.0,90643.0,0.08464]
[1731801621378,0.0314,90655.0,90643.0,0.19494344]
[1731801621572,0.3608,90649.0,90643.0,0.11030344]
[1731801621775,0.10625037,90649.0,90644.0,0.08464]
[1731801621977,0.10625037,90649.0,90643.0,0.11030344]
[1731801622274,0.10625037,90649.0,90644.0,0.08464]
[1731801622467,0.10625037,90649.0,90643.0,0.11031926]
[1731801622663,0.10625037,90649.0,90644.0,0.08464]
[1731801623077,0.0314,90655.0,90644.0,0.08464]
[1731801623273,0.10625037,90651.0,90644.0,0.08464]
[1731801623481,0.10625037,90651.0,90645.0,0.19495865]
[1731801623780,0.10625037,90651.0,90642.0,0.3608]
[1731801623968,0.46705037,90643.0,90630.0,0.05641064]
[1731801624174,0.10625037,90631.0,90630.0,0.05641064]
[1731801624372,0.10625037,90631.0,90618.0,0.0643]
[1731801624373,0.10625037,90631.0,90628.0,0.11031682]
[1731801624573,0.0312,90630.0,90624.0,0.0846]
[1731801624970,0.0312,90630.0,90628.0,0.11031682]
[1731801625170,0.0312,90630.0,90624.0,0.0846]
[1731801625171,0.3608,90629.0,90624.0,0.0846]
[1731801626680,0.3608,90629.0,90614.0,0.3608]
[1731801626879,0.3608,90629.0,90609.0,0.00165526]
[1731801627072,0.3608,90629.0,90617.0,0.0846]
[1731801627073,0.7216,90629.0,90617.0,0.0846]
[1731801627474,0.7216,90629.0,90614.0,0.0846]
[1731801628083,0.88569306,90629.0,90614.0,0.00761436]
[1731801628299,0.10625037,90615.0,90614.0,0.00761436]
[1731801628471,0.10625037,90615.0,90611.0,0.0846]
[1731801629176,0.10625037,90615.0,90612.0,0.00013319]
[1731801629380,0.10625037,90615.0,90612.0,0.11049263]
[1731801630281,0.10625037,90615.0,90614.0,0.055148]
[1731801631081,0.10625037,90615.0,90612.0,0.00013319]
[1731801631478,0.055148,90614.0,90613.0,0.11035761]
[1731801631788,0.10625037,90614.0,90612.0,0.00013319]
[1731801635378,0.16139837,90614.0,90612.0,0.00013319]
[1731801635580,0.10625037,90614.0,90612.0,0.00013319]
[1731801635881,0.10625037,90614.0,90612.0,0.05528219]
[1731801636286,0.10625037,90613.0,90612.0,0.00013319]
[1731801636596,0.10625037,90613.0,90612.0,0.05528219]
[1731801637190,0.05390873,90619.0,90612.0,0.00013319]
[1731801637396,0.3608,90620.0,90617.0,0.055146]
[1731801637581,0.10625037,90621.0,90612.0,0.00013319]
[1731801637783,0.3608,90625.0,90624.0,0.055142]
[1731801637998,0.05611259,90628.0,90613.0,0.0308]
[1731801638181,0.0312,90630.0,90625.0,0.055141]
[1731801638789,0.0312,90630.0,90628.0,0.05514]
[1731801639091,0.0312,90630.0,90619.0,0.0846]
[1731801639387,0.46705037,90621.0,90619.0,0.139745]
[1731801639580,0.46705037,90621.0,90619.0,0.0846]
[1731801639781,0.10625037,90621.0,90620.0,0.055145]
[1731801640182,0.10625037,90628.0,90619.0,0.0846]
[1731801640386,0.10625037,90628.0,90627.0,0.05514]
[1731801640795,0.0312,90630.0,90629.0,0.055139]
[1731801640992,0.0312,90630.0,90623.0,0.3608]
[1731801640993,0.10625037,90636.0,90631.0,0.055138]
[1731801641282,0.10625037,90636.0,90635.0,0.055135]
[1731801642486,0.05557182,90639.0,90635.0,0.055135]
[1731801642692,0.032,90640.0,90635.0,0.055135]
[1731801642989,0.032,90640.0,90635.0,0.033268]
[1731801643594,0.032,90640.0,90639.0,0.055133]
[1731801646495,0.032,90640.0,90639.0,0.415933]
[1731801650504,0.10625037,90643.0,90639.0,0.3608]
[1731801650706,0.10625037,90643.0,90642.0,0.055131]
[1731801651094,0.13885037,90650.0,90647.0,0.055128]
[1731801651298,0.46705037,90657.0,90647.0,0.415928]
[1731801651500,0.0051,90658.0,90647.0,0.415928]
[1731801651699,0.03332,90662.0,90661.0,0.05512]
[1731801652500,0.0326,90662.0,90661.0,0.05512]
[1731801653910,0.10625037,90665.0,90657.0,0.3608]
[1731801655102,0.10625037,90665.0,90664.0,0.055118]
[1731801655500,0.10625037,90665.0,90664.0,0.05519744]
[1731801658115,0.10625037,90665.0,90657.0,0.33899744]
[1731801658608,0.10625037,90665.0,90664.0,0.055118]
[1731801659109,0.10625037,90665.0,90664.0,0.05520933]
[1731801659510,0.00012558,90668.0,90667.0,0.055116]
[1731801660217,0.00012558,90668.0,90667.0,0.16541275]
[1731801662607,0.00012558,90668.0,90667.0,0.21961433]
[1731801663310,0.00012558,90668.0,90667.0,0.30413433]
[1731801671220,0.10637595,90668.0,90667.0,0.24993275]
[1731801671717,0.10637595,90668.0,90667.0,0.139636]
[1731801672512,0.10637595,90668.0,90664.0,9.133e-05]
[1731801672716,0.055117,90665.0,90664.0,0.08461133]
[1731801672917,0.055117,90665.0,90664.0,9.133e-05]
[1731801673119,0.36144,90666.0,90662.0,0.00761133]
[1731801673333,0.3608,90666.0,90662.0,0.00761133]
[1731801673821,0.055119,90662.0,90658.0,0.08452]
[1731801674009,0.10625037,90659.0,90656.0,0.08452]
[1731801674211,0.10625037,90659.0,90657.0,5.59e-05]
[1731801674433,0.3608,90658.0,90657.0,5.59e-05]
[1731801677529,0.10625037,90659.0,90657.0,0.0551779]
[1731801678431,0.10625037,90659.0,90658.0,0.055121]
[1731801679531,0.10625037,90659.0,90657.0,5.59e-05]
[1731801679826,0.23774269,90659.0,90657.0,5.59e-05]
[1731801680029,0.3608,90664.0,90657.0,5.59e-05]
[1731801680030,0.055121,90658.0,90657.0,5.59e-05]
[1731801680219,0.1087368,90658.0,90657.0,5.59e-05]
[1731801680616,0.25203268,90658.0,90657.0,7.1e-06]
[1731801680925,0.1087368,90658.0,90657.0,7.1e-06]
[1731801681926,0.108739,90658.0,90657.0,7.1e-06]
[1731801682229,0.16471219,90658.0,90657.0,7.1e-06]
[1731801684539,0.11109419,90658.0,90657.0,7.1e-06]
[1731801685230,0.27598457,90658.0,90657.0,7.1e-06]
[1731801685532,0.22085312,90658.0,90657.0,7.1e-06]
[1731801685735,0.05597319,90658.0,90657.0,7.1e-06]
[1731801685923,0.16487993,90659.0,90657.0,7.1e-06]
[1731801686436,0.3608,90658.0,90657.0,7.1e-06]
[1731801686637,0.3608,90658.0,90657.0,0.0551291]
[1731801687633,0.49266595,90658.0,90657.0,0.0551291]
[1731801688022,0.49266595,90658.0,90645.0,0.3608]
[1731801688230,0.3608,90658.0,90657.0,0.055122]
[1731801688529,0.3608,90658.0,90657.0,0.139602]
[1731801690125,0.0926,90667.0,90657.0,0.139602]
[1731801690126,0.0926,90667.0,90657.0,0.08448]
[1731801690327,0.36092558,90668.0,90661.0,0.3608]
[1731801690624,0.00012558,90668.0,90667.0,0.055116]
[1731801691532,0.00012558,90668.0,90667.0,0.1654091]
[1731801692819,0.00165464,90677.0,90675.0,0.055111]
[1731801693132,0.00165464,90677.0,90675.0,0.139591]
[1731801693835,0.00165464,90677.0,90676.0,0.00010498]
[1731801696033,0.10625037,90684.0,90677.0,0.05511]
[1731801696344,0.10625037,90684.0,90676.0,0.00010498]
[1731801696345,0.10625037,90684.0,90681.0,0.055107]
[1731801696538,0.16253972,90684.0,90682.0,0.055107]
[1731801698526,0.10625037,90684.0,90682.0,0.055107]
[1731801699727,0.10625037,90684.0,90682.0,0.415907]
[1731801700022,0.0326,90689.0,90682.0,0.415907]
[1731801700225,0.0326,90689.0,90688.0,0.055103]
[1731801700832,0.00034245,90690.0,90688.0,0.055103]
[1731801704237,0.00034245,90690.0,90689.0,0.11026695]
[1731801707845,0.10659282,90690.0,90689.0,0.11026695]
[1731801708240,0.10659282,90690.0,90689.0,0.16536995]
[1731801708641,0.10659282,90690.0,90689.0,0.055103]
[1731801708854,0.10659282,90690.0,90689.0,0.16536934]
[1731801710840,0.10659282,90690.0,90689.0,0.24984934]
[1731801711842,0.00034245,90690.0,90689.0,0.24984934]
[1731801712951,0.00034245,90690.0,90689.0,0.58064934]
[1731801713152,0.00034245,90690.0,90689.0,0.60628801]
[1731801713345,0.00034245,90690.0,90689.0,0.58064934]
[1731801714341,0.00034245,90690.0,90689.0,0.6062387]
[1731801715741,7.923e-05,90692.0,90691.0,0.055101]
[1731801716038,7.923e-05,90692.0,90691.0,0.08069036]
[1731801716251,0.1051,90700.0,90691.0,0.08069036]
[1731801716252,0.05616119,90700.0,90699.0,0.055097]
[1731801716436,0.05106119,90700.0,90699.0,0.52214737]
[1731801716944,0.05106119,90700.0,90699.0,0.96317128]
[1731801717147,0.0005706,90706.0,90705.0,0.055093]
[1731801717348,0.0005706,90706.0,90705.0,0.139493]
[1731801717748,0.0005706,90706.0,90705.0,0.24974719]
[1731801718249,0.0005706,90706.0,90705.0,0.24988184]
[1731801718641,0.0005706,90706.0,90705.0,0.44657196]
[1731801719152,0.0005706,90706.0,90705.0,0.24988184]
[1731801719355,0.0005706,90706.0,90705.0,0.58064184]
[1731801719949,0.0007171,90711.0,90705.0,0.58064184]
[1731801720151,0.0007171,90711.0,90710.0,0.52214037]
[1731801720650,0.0007171,90711.0,90710.0,0.41589]
[1731801720952,0.0007171,90711.0,90710.0,0.52613385]
[1731801721339,0.0007171,90711.0,90710.0,0.61053385]
[1731801721950,0.0007171,90711.0,90710.0,0.52613385]
[1731801722150,0.0007171,90711.0,90710.0,0.61053385]
[1731801722352,0.0007171,90711.0,90710.0,0.52613385]
[1731801722553,0.0007171,90711.0,90710.0,0.24973385]
[1731801723251,0.0007171,90711.0,90710.0,0.21979952]
[1731801723451,0.0007171,90711.0,90710.0,0.30419952]
[1731801724349,0.0007171,90711.0,90710.0,0.21979952]
[1731801724549,0.0007171,90711.0,90710.0,0.30419952]
[1731801727445,0.0007171,90711.0,90705.0,0.00013465]
[1731801727646,0.10625037,90708.0,90705.0,0.00013465]
[1731801727854,0.10625037,90708.0,90704.0,0.03453465]
[1731801728153,0.10625037,90708.0,90701.0,0.055095]
[1731801728453,0.10625037,90708.0,90700.0,0.0844]
[1731801728651,0.3608,90706.0,90700.0,0.0844]
[1731801728852,0.3608,90706.0,90704.0,0.055093]
[1731801729056,0.3608,90706.0,90691.0,0.055101]
[1731801729351,0.3608,90706.0,90704.0,0.055093]
[1731801729849,0.3608,90706.0,90692.0,0.0844]
[1731801729850,0.3608,90706.0,90705.0,0.055093]
[1731801731045,0.05475842,90711.0,90710.0,0.05509]
[1731801734356,0.0007171,90711.0,90710.0,0.05509]
[1731801734657,0.10696747,90711.0,90710.0,0.05509]
[1731801735872,0.0007171,90711.0,90710.0,0.05509]
[1731801737649,0.0007171,90711.0,90710.0,0.16533082]
[1731801737855,0.0007171,90711.0,90710.0,0.24973082]
[1731801738373,0.0007171,90711.0,90710.0,0.27581255]
[1731801745977,0.0007171,90711.0,90710.0,0.47298502]
[1731801747465,0.0007171,90711.0,90710.0,0.27581255]
[1731801747665,0.0007171,90711.0,90710.0,0.47294301]
[1731801748266,0.3615171,90711.0,90709.0,0.19713046]
[1731801748471,0.0319,90710.0,90704.0,0.055093]
[1731801748662,0.0319,90710.0,90704.0,0.055094]
[1731801748663,0.10625037,90705.0,90704.0,0.055094]
[1731801749065,0.13200326,90708.0,90702.0,0.08436]
[1731801749371,0.13200326,90709.0,90708.0,0.055091]
[1731801749584,0.16390326,90710.0,90708.0,0.02575792]
[1731801749765,0.16390326,90710.0,90709.0,0.055091]
[1731801750064,0.0319,90710.0,90704.0,0.055093]
[1731801750376,0.13199663,90707.0,90705.0,0.08085113]
[1731801750571,0.13199663,90707.0,90705.0,0.055093]
[1731801750771,0.0319,90710.0,90706.0,0.055092]
[1731801750772,0.13199663,90708.0,90706.0,0.055092]
[1731801750968,0.13199663,90708.0,90707.0,0.055092]
[1731801751165,0.0319,90710.0,90709.0,0.055091]
[1731801756370,0.1639229,90710.0,90709.0,0.055091]
[1731801756565,0.0319,90710.0,90709.0,0.055091]
[1731801757070,0.0319,90710.0,90709.0,0.08105915]
[1731801757676,0.0319,90710.0,90709.0,0.08102662]
[1731801758174,0.0319,90710.0,90709.0,0.08102674]
[1731801758981,0.05666816,90711.0,90710.0,0.05509]
[1731801759174,0.05666816,90711.0,90710.0,0.08102574]
[1731801759379,0.05666816,90711.0,90710.0,0.05509]
[1731801762381,0.05666816,90711.0,90710.0,0.08149187]
[1731801762584,0.05666816,90711.0,90710.0,0.08150703]
[1731801762876,0.12629019,90711.0,90710.0,0.08150703]
[1731801764186,0.12629019,90711.0,90710.0,0.05509]
[1731801764375,0.12629019,90711.0,90710.0,0.08151098]
[1731801767569,0.12629019,90711.0,90710.0,0.05509]
[1731801767980,0.12629019,90711.0,90710.0,0.08160723]
[1731801769191,0.12629019,90711.0,90710.0,0.08163497]
[1731801769370,0.12629019,90711.0,90710.0,0.02654497]
[1731801769571,0.54217919,90711.0,90710.0,0.02654497]
[1731801769776,0.59576195,90711.0,90710.0,0.02654497]
[1731801769987,0.59576195,90711.0,90709.0,0.05509]
[1731801770282,0.05358276,90710.0,90709.0,0.05509]
[1731801770484,0.54217919,90711.0,90709.0,0.05509]
[1731801770782,0.54217919,90711.0,90710.0,0.05509]
[1731801770989,0.5957625,90711.0,90710.0,0.05509]
[1731801771578,0.61029553,90711.0,90699.0,0.19713046]
[1731801771884,0.13924406,90700.0,90699.0,0.055097]
[1731801772071,0.06962203,90700.0,90699.0,0.08120567]
[1731801774079,0.06962203,90700.0,90699.0,0.055097]
[1731801774477,0.13924406,90700.0,90695.0,0.055099]
[1731801774793,0.18717655,90697.0,90696.0,0.02592889]
[1731801774982,0.18717655,90697.0,90696.0,0.08102689]
[1731801775176,0.055098,90697.0,90696.0,0.02592889]
[1731801775686,0.10868976,90697.0,90696.0,0.055098]
[1731801775887,0.14148976,90697.0,90696.0,0.055098]
[1731801776279,0.19641055,90697.0,90696.0,0.055098]
[1731801776889,0.08772079,90697.0,90691.0,0.00165371]
[1731801777081,0.06962203,90692.0,90691.0,0.00165371]
[1731801778886,0.43042203,90692.0,90691.0,0.00165371]
[1731801781991,0.48552303,90692.0,90691.0,0.00165371]
[1731801782192,0.61750788,90692.0,90691.0,0.00165371]
[1731801782390,0.48552303,90692.0,90691.0,0.00165371]
[1731801783303,0.61749337,90692.0,90691.0,0.00165371]
[1731801783898,0.48552303,90692.0,90691.0,0.00165371]
[1731801784093,0.61749108,90692.0,90691.0,0.00165371]
[1731801785206,0.61747175,90692.0,90691.0,0.00165371]
[1731801785406,0.48552303,90692.0,90691.0,0.00165371]
[1731801788496,0.3608,90692.0,90691.0,0.05675471]
[1731801788702,0.36144,90700.0,90693.0,0.0551]
[1731801788703,0.13192174,90696.0,90693.0,0.0551]
[1731801788902,0.3608,90700.0,90695.0,0.06962203]
[1731801789102,0.13192174,90703.0,90695.0,0.06962203]
[1731801789103,0.13192174,90709.0,90703.0,0.055094]
[1731801789295,0.13192174,90709.0,90708.0,0.055091]
[1731801789296,0.0051,90709.0,90708.0,0.055091]
[1731801789496,0.36385134,90711.0,90703.0,0.08436]
[1731801789811,0.36317134,90711.0,90710.0,0.05509]
[1731801790104,0.43279337,90711.0,90710.0,0.05509]
[1731801791016,0.36317134,90711.0,90710.0,0.05509]
[1731801791210,0.36317134,90711.0,90710.0,0.16533082]
[1731801791914,0.36317134,90711.0,90710.0,0.11024082]
[1731801792209,0.36317134,90711.0,90708.0,0.055091]
[1731801792601,0.36317134,90711.0,90709.0,0.11024082]
[1731801793103,0.36317134,90711.0,90710.0,0.08436]
[1731801793700,0.36317134,90711.0,90710.0,0.19460082]
[1731801796901,0.00237134,90711.0,90710.0,0.19460082]
[1731801800216,0.0007171,90711.0,90710.0,0.19460082]
[1731801802616,0.0007171,90711.0,90710.0,0.55540082]
[1731801802812,0.0007171,90711.0,90710.0,0.62502285]
[1731801803312,0.0010349,90715.0,90714.0,0.055087]
[1731801803708,0.0010349,90715.0,90714.0,0.08076421]
[1731801803909,0.0010349,90715.0,90714.0,0.19100017]
[1731801804111,0.0010349,90715.0,90714.0,0.16532296]
[1731801804305,0.0010349,90715.0,90714.0,0.19099622]
[1731801804923,0.07065693,90715.0,90710.0,0.06286]
[1731801805108,0.07065693,90715.0,90696.0,0.40128]
[1731801805109,0.3608,90711.0,90697.0,0.26023046]
[1731801805308,0.3608,90711.0,90697.0,0.08432]
[1731801805309,0.12471903,90698.0,90697.0,0.08432]
[1731801805514,0.06962203,90700.0,90697.0,0.08432]
[1731801807424,0.06962203,90700.0,90693.0,0.3608]
[1731801807425,0.06962203,90700.0,90698.0,0.08432]
[1731801807913,0.06962203,90700.0,90699.0,0.055097]
[1731801808106,0.12490391,90700.0,90699.0,0.055097]
[1731801808821,0.05528188,90700.0,90699.0,0.055097]
[1731801809010,0.055095,90702.0,90699.0,0.055097]
[1731801809214,0.055095,90702.0,90700.0,0.055096]
[1731801809215,0.11135218,90702.0,90700.0,0.055096]
[1731801810117,0.11135218,90702.0,90698.0,0.08432]
[1731801810118,0.05625718,90702.0,90701.0,0.055095]
[1731801810334,0.05625718,90702.0,90698.0,0.08432]
[1731801810335,0.3608,90703.0,90702.0,0.055095]
[1731801810625,0.055089,90712.0,90698.0,0.08432]
[1731801810626,0.0327,90710.0,90706.0,0.055092]
[1731801810933,0.08868706,90710.0,90699.0,0.11025054]
[1731801811307,0.08868706,90710.0,90709.0,0.055091]
[1731801811514,0.2206088,90710.0,90709.0,0.055091]
[1731801811719,0.2206088,90710.0,90699.0,0.11025054]
[1731801811720,0.055091,90709.0,90699.0,0.055096]
[1731801812022,0.10610253,90707.0,90699.0,0.11024203]
[1731801812221,0.10610253,90707.0,90700.0,0.08432]
[1731801812222,0.415896,90701.0,90700.0,0.08432]
[1731801812721,0.055097,90699.0,90698.0,0.055097]
[1731801812915,0.3608,90701.0,90700.0,0.055096]
[1731801813913,0.415895,90701.0,90700.0,0.055096]
[1731801814629,0.3608,90701.0,90700.0,0.055096]
[1731801815328,0.54772015,90701.0,90700.0,0.055096]
[1731801815811,0.415895,90701.0,90700.0,0.055096]
[1731801816221,0.54772015,90701.0,90700.0,0.055096]
[1731801817123,0.055095,90701.0,90700.0,0.055096]
[1731801817331,0.18692015,90701.0,90700.0,0.055096]
[1731801817521,0.13182515,90701.0,90700.0,0.055096]
[1731801818025,0.13182515,90702.0,90696.0,0.08432]
[1731801818233,0.055094,90704.0,90701.0,0.055095]
[1731801819316,0.16509049,90706.0,90705.0,0.055093]
[1731801819934,0.16509049,90707.0,90706.0,0.055092]
[1731801820130,0.16509049,90708.0,90707.0,0.055092]
[1731801820635,0.16509049,90709.0,90696.0,0.08432]
[1731801820817,0.16509049,90709.0,90708.0,0.055091]
[1731801823123,0.055093,90705.0,90696.0,0.08432]
[1731801823331,0.055093,90705.0,90704.0,0.055093]
[1731801823526,0.16509049,90709.0,90697.0,0.11024325]
[1731801823733,0.13200822,90704.0,90698.0,0.02608347]
[1731801823942,0.13200822,90704.0,90699.0,0.02608347]
[1731801824125,0.13200822,90704.0,90700.0,0.02608347]
[1731801824321,0.13200822,90704.0,90703.0,0.055094]
[1731801824633,0.055092,90707.0,90706.0,0.055092]
[1731801826533,0.055094,90704.0,90701.0,0.055095]
[1731801826725,0.13201741,90702.0,90701.0,0.055095]
[1731801826929,0.055095,90703.0,90701.0,0.055095]
[1731801827137,0.055095,90703.0,90702.0,0.055095]
[1731801827322,0.055095,90703.0,90702.0,0.16534068]
[1731801827722,0.055095,90703.0,90702.0,0.055095]
[1731801828043,0.18711665,90703.0,90702.0,0.055095]
[1731801828338,0.18711665,90703.0,90702.0,0.08104061]
[1731801828544,0.18711665,90703.0,90702.0,0.055095]
[1731801828926,0.18711665,90703.0,90702.0,0.08121641]
[1731801829233,0.18712872,90703.0,90702.0,0.08121641]
[1731801829435,0.055095,90703.0,90702.0,0.08121641]
[1731801829938,0.055095,90703.0,90702.0,0.055095]
[1731801830438,0.055095,90703.0,90702.0,0.08114625]
[1731801831329,0.23471176,90707.0,90706.0,0.055092]
[1731801831529,0.16508565,90709.0,90708.0,0.055091]
[1731801831737,0.05598706,90710.0,90709.0,0.139411]
[1731801831930,0.23470692,90711.0,90709.0,0.08432]
[1731801831931,0.06962127,90711.0,90709.0,0.08432]
[1731801832251,0.23470692,90711.0,90710.0,0.08126396]
[1731801832432,0.06962127,90711.0,90710.0,0.08126396]
[1731801832629,0.16508565,90713.0,90712.0,0.055089]
[1731801832844,0.06962127,90714.0,90713.0,0.055088]
[1731801833040,0.12320227,90714.0,90713.0,0.08126196]
[1731801833333,0.12320178,90714.0,90713.0,0.08126196]
[1731801833537,0.06962127,90714.0,90713.0,0.08126196]
[1731801833840,0.23473984,90714.0,90713.0,0.08126196]
[1731801834238,0.12320126,90714.0,90713.0,0.08126196]
[1731801835037,0.0010349,90715.0,90713.0,0.02617396]
[1731801835236,0.0010349,90715.0,90714.0,0.055087]
[1731801835537,0.0010349,90715.0,90714.0,0.08139369]
[1731801835936,0.0010349,90715.0,90714.0,0.19162965]
[1731801836729,0.0010349,90715.0,90714.0,0.24964296]
[1731801837432,0.0010349,90715.0,90714.0,0.27577368]
[1731801838140,0.0010349,90715.0,90714.0,0.24964296]
[1731801838335,0.0010349,90715.0,90714.0,0.27567538]
[1731801838536,0.0010349,90715.0,90714.0,0.24964296]
[1731801838834,0.0010349,90715.0,90714.0,0.27569292]
[1731801839034,0.13308197,90715.0,90714.0,0.27569292]
[1731801839236,0.0010349,90715.0,90714.0,0.27569292]
[1731801840333,0.0010349,90715.0,90714.0,0.24964296]
[1731801840533,0.0010349,90715.0,90714.0,0.08432]
[1731801840832,0.0010349,90715.0,90704.0,0.19713046]
[1731801841033,0.0010349,90715.0,90702.0,0.08432]
[1731801841034,0.06962127,90705.0,90702.0,0.08432]
[1731801841239,0.13203645,90705.0,90704.0,0.055094]
[1731801841644,0.13203645,90706.0,90704.0,0.14183596]
[1731801841844,0.055086,90717.0,90705.0,0.19713046]
[1731801841845,0.13203645,90710.0,90705.0,0.19713046]
[1731801842041,0.13203645,90710.0,90709.0,0.055091]
[1731801842339,0.1661832,90715.0,90710.0,0.05509]
[1731801842540,0.0010349,90715.0,90711.0,0.055089]
[1731801842937,0.0010349,90715.0,90712.0,0.11023839]
[1731801843140,0.0010349,90715.0,90712.0,0.16532639]
[1731801843332,0.0010349,90715.0,90713.0,0.055088]
[1731801843737,0.1661832,90715.0,90713.0,0.055088]
[1731801843931,0.1661832,90715.0,90714.0,0.055087]
[1731801844235,0.0010349,90715.0,90714.0,0.2753072]
[1731801844433,0.13305901,90715.0,90714.0,0.16507064]
[1731801844633,0.13305901,90715.0,90714.0,0.24964356]
[1731801844634,0.0010349,90715.0,90714.0,0.24964356]
[1731801844845,0.13305901,90715.0,90714.0,0.24964356]
[1731801845242,0.0010349,90715.0,90714.0,0.24964356]
[1731801845437,0.0010349,90715.0,90714.0,0.27560733]
[1731801845969,0.13305901,90715.0,90714.0,0.27560733]
[1731801846147,0.12574317,90715.0,90714.0,0.02596377]
[1731801846337,0.12574317,90715.0,90714.0,0.08432]
[1731801846532,0.29089147,90715.0,90714.0,0.08432]
[1731801847141,0.07065617,90715.0,90714.0,0.11026747]
[1731801847342,0.07065617,90715.0,90714.0,0.16535447]
[1731801847544,0.07065617,90715.0,90714.0,0.11026747]
[1731801847545,0.12574317,90715.0,90714.0,0.11026747]
[1731801847751,0.12574317,90715.0,90714.0,0.08432]
[1731801848051,0.12574317,90715.0,90714.0,0.139407]
[1731801848353,0.0561219,90715.0,90714.0,0.139407]
[1731801848840,0.0561219,90715.0,90714.0,0.055087]
[1731801850243,0.2212702,90715.0,90714.0,0.055087]
[1731801851366,0.055091,90709.0,90707.0,0.08432]
[1731801851655,0.055092,90707.0,90703.0,0.08432]
[1731801851843,0.16508455,90706.0,90703.0,0.08432]
[1731801852043,0.22017655,90707.0,90706.0,0.055092]
[1731801852260,0.10867716,90707.0,90706.0,0.055092]
[1731801852560,0.10867716,90707.0,90695.0,0.61358846]
[1731801852561,0.46312127,90708.0,90695.0,0.3608]
[1731801852762,0.055099,90695.0,90693.0,0.25223046]
[1731801853055,0.43042127,90696.0,90695.0,0.055099]
[1731801853056,0.13206756,90696.0,90695.0,0.055099]
[1731801853252,0.23470552,90701.0,90700.0,0.055096]
[1731801853461,0.06962127,90701.0,90700.0,0.055096]
[1731801853645,0.23469779,90701.0,90700.0,0.055096]
[1731801853860,0.06962127,90701.0,90700.0,0.055096]
[1731801854051,0.12320909,90701.0,90700.0,0.055096]
[1731801854258,0.23467787,90701.0,90700.0,0.055096]
[1731801854748,0.23467835,90701.0,90700.0,0.055096]
[1731801855244,0.16505708,90703.0,90700.0,0.11025297]
[1731801855448,0.3935,90708.0,90704.0,0.055094]
[1731801855449,0.16505708,90705.0,90704.0,0.055094]
[1731801855645,0.16505708,90705.0,90695.0,0.06962127]
[1731801855646,0.16505708,90707.0,90695.0,0.06962127]
[1731801855957,0.1320219,90705.0,90697.0,0.19713046]
[1731801856159,0.1320219,90706.0,90698.0,0.22286056]
[1731801856353,0.1320219,90706.0,90705.0,0.055093]
[1731801856549,0.0327,90708.0,90707.0,0.055092]
[1731801856756,0.0327,90708.0,90707.0,0.0808221]
[1731801858761,0.16472967,90708.0,90707.0,0.0808221]
[1731801859059,0.0327,90708.0,90707.0,0.0808221]
[1731801859966,0.13202967,90712.0,90710.0,0.05509]
[1731801860258,0.13202967,90714.0,90711.0,0.0808191]
[1731801860461,0.13202871,90713.0,90712.0,0.08432]
[1731801860762,0.13202871,90714.0,90713.0,0.055088]
[1731801860952,0.13202871,90714.0,90713.0,0.0808181]
[1731801861152,0.0010349,90715.0,90714.0,0.055087]
[1731801861450,0.13306405,90715.0,90714.0,0.0808171]
[1731801861656,0.0010349,90715.0,90714.0,0.0808171]
[1731801861856,0.13306388,90715.0,90714.0,0.0808171]
[1731801862251,0.0010349,90715.0,90714.0,0.055087]
[1731801862660,0.0010349,90715.0,90714.0,0.16532296]
[1731801863059,0.0010349,90715.0,90714.0,0.19178096]
[1731801865256,0.07065617,90715.0,90714.0,0.38860019]
[1731801865461,0.07065617,90715.0,90714.0,0.13669396]
[1731801865650,0.43145617,90715.0,90714.0,0.026458]
[1731801865966,0.43145617,90715.0,90712.0,0.05540294]
[1731801865967,0.48503637,90715.0,90712.0,0.05540294]
[1731801866167,0.19648159,90714.0,90712.0,0.05540294]
[1731801866370,0.19648159,90714.0,90711.0,0.08432]
[1731801866563,0.0315,90714.0,90711.0,0.08432]
[1731801867267,0.0315,90714.0,90712.0,0.055089]
[1731801867966,0.07065617,90715.0,90714.0,0.055087]
[1731801868966,0.13301386,90715.0,90714.0,0.23494423]